fUSD/lending_fUSD_20241208
["ID","MTS","AMOUNT","RATE_DAILY","PERIOD"]
[344631286,1733644924209,495.17956327,0.00014983,2]
[344631287,1733644924551,495.17956327,0.00014988,2]
[344631288,1733644924843,495.17956327,0.00014971,2]
[344631289,1733644925137,495.17956327,0.00014975,2]
[344631290,1733644925417,495.17956327,0.00014959,2]
[344631291,1733644931665,922.56765982,0.00014979,2]
[344631292,1733644932058,922.56765982,0.00014981,2]
[344631293,1733644932395,922.56765982,0.00014967,2]
[344631294,1733644932729,922.56765982,0.00014968,2]
[344631295,1733644933178,922.56765982,0.0001498,2]
[344631296,1733644933506,922.56765982,0.00014998,2]
[344631297,1733644940471,511.55047161,0.00014984,2]
[344631298,1733644940772,511.55047161,0.00014963,2]
[344631299,1733644941289,511.55047161,0.00014961,2]
[344631300,1733644941575,511.55047161,0.00014996,2]
[344631301,1733644941853,511.55047161,0.00014977,2]
[344631302,1733644942151,511.55047161,0.00014988,2]
[344631303,1733644948947,646.11070757,0.00014982,2]
[344631304,1733644949300,646.11070757,0.00014956,2]
[344631305,1733644949603,646.11070757,0.00014991,2]
[344631306,1733644949967,646.11070757,0.00014969,2]
[344631307,1733644950252,646.11070757,0.00014959,2]
[344631308,1733644951092,646.11070757,0.00014964,2]
[344631309,1733644961242,348.74381603,0.00014956,2]
[344631310,1733644961526,348.74381603,0.0001496,2]
[344631311,1733644961811,348.74381603,0.00014982,2]
[344631312,1733644962111,348.74381603,0.00014989,2]
[344631313,1733644962399,348.74381603,0.0001499,2]
[344631314,1733644962667,348.74381603,0.00014968,2]
[344631315,1733644984436,371.38467245,0.00014992,2]
[344631316,1733644984727,371.38467245,0.00014975,2]
[344631317,1733644985007,371.38467245,0.00014957,2]
[344631318,1733644985302,371.38467245,0.00014965,2]
[344631319,1733644985729,371.38467245,0.00014962,2]
[344631320,1733644985869,371.38467245,0.00014972,2]
[344631321,1733644992158,691.92574487,0.00014986,2]
[344631322,1733644992450,691.92574487,0.00014988,2]
[344631323,1733644992739,691.92574487,0.00014974,2]
[344631324,1733644993008,691.92574487,0.00014984,2]
[344631325,1733644993285,691.92574487,0.00014968,2]
[344631326,1733644993558,691.92574487,0.00014966,2]
[344631327,1733645000484,383.66285371,0.00014972,2]
[344631328,1733645000803,383.66285371,0.00014985,2]
[344631329,1733645001123,383.66285371,0.0001498,2]
[344631330,1733645001403,383.66285371,0.00014995,2]
[344631331,1733645001693,383.66285371,0.00014986,2]
[344631332,1733645001959,383.66285371,0.00014968,2]
[344631333,1733645009017,484.58303068,0.00014996,2]
[344631334,1733645009138,484.58303068,0.00014975,2]
[344631335,1733645009456,484.58303068,0.00014973,2]
[344631336,1733645009759,484.58303068,0.00014965,2]
[344631337,1733645010078,484.58303068,0.00014992,2]
[344631338,1733645010356,484.58303068,0.00014961,2]
[344631339,1733645020507,261.55786202,0.00014986,2]
[344631340,1733645020540,284.38951938,0.00014886,2]
[344631341,1733645020954,261.55786202,0.00014975,2]
[344631342,1733645021237,261.55786202,0.00014961,2]
[344631343,1733645021535,261.55786202,0.00014959,2]
[344631344,1733645021818,261.55786202,0.00014991,2]
[344631345,1733645022099,261.55786202,0.00014989,2]
[344631350,1733645046563,278.53850434,0.00014956,2]
[344631351,1733645046838,278.53850434,0.00014958,2]
[344631352,1733645047144,278.53850434,0.00014997,2]
[344631353,1733645047451,278.53850434,0.00014983,2]
[344631354,1733645047960,278.53850434,0.00014979,2]
[344631355,1733645048571,278.53850434,0.00014992,2]
[344631356,1733645054524,518.94430865,0.00014996,2]
[344631357,1733645054833,518.94430865,0.00014959,2]
[344631358,1733645055124,518.94430865,0.00014975,2]
[344631359,1733645055413,518.94430865,0.00014963,2]
[344631360,1733645055671,518.94430865,0.00014976,2]
[344631361,1733645056029,518.94430865,0.00014969,2]
[344631363,1733645062980,287.74714028,0.0001499,2]
[344631364,1733645063265,287.74714028,0.00014981,2]
[344631365,1733645063547,287.74714028,0.00014977,2]
[344631366,1733645063818,287.74714028,0.00014956,2]
[344631367,1733645064087,287.74714028,0.00014986,2]
[344631368,1733645064366,287.74714028,0.00014974,2]
[344631370,1733645071309,363.43727301,0.00014991,2]
[344631371,1733645071657,363.43727301,0.00014995,2]
[344631372,1733645071934,363.43727301,0.00014996,2]
[344631373,1733645072229,363.43727301,0.00014998,2]
[344631374,1733645072522,363.43727301,0.00014962,2]
[344631375,1733645072840,363.43727301,0.0001499,2]
[344631378,1733645082916,200.0,0.00014972,2]
[344631379,1733645083190,200.0,0.00014989,2]
[344631380,1733645083452,200.0,0.00014982,2]
[344631381,1733645083728,200.0,0.00014962,2]
[344631382,1733645084008,200.0,0.00014974,2]
[344631383,1733645084278,200.0,0.0001496,2]
[344631386,1733645103885,208.90387825,0.00014993,2]
[344631387,1733645104206,208.90387825,0.00014956,2]
[344631388,1733645104510,208.90387825,0.0001499,2]
[344631389,1733645104817,208.90387825,0.00014975,2]
[344631390,1733645105101,208.90387825,0.00014965,2]
[344631391,1733645105424,208.90387825,0.00014963,2]
[344631393,1733645106378,200.0,0.00015,2]
[344631394,1733645111811,389.20823149,0.00014975,2]
[344631395,1733645112075,389.20823149,0.00014966,2]
[344631396,1733645112349,389.20823149,0.00014991,2]
[344631397,1733645112636,389.20823149,0.00014994,2]
[344631398,1733645112998,389.20823149,0.00014987,2]
[344631399,1733645113311,389.20823149,0.00015,2]
[344631402,1733645120763,215.81035521,0.0001496,2]
[344631403,1733645120898,215.81035521,0.00014996,2]
[344631405,1733645121166,215.81035521,0.00014992,2]
[344631406,1733645121449,215.81035521,0.0001496,2]
[344631407,1733645121746,215.81035521,0.00014975,2]
[344631408,1733645122036,215.81035521,0.00014982,2]
[344631411,1733645129038,272.57795476,0.00014959,2]
[344631412,1733645129340,272.57795476,0.00014966,2]
[344631413,1733645129628,272.57795476,0.00014977,2]
[344631414,1733645129914,272.57795476,0.00014981,2]
[344631416,1733645130194,272.57795476,0.00014996,2]
[344631417,1733645130522,272.57795476,0.00014957,2]
[344631421,1733645141027,200.0,0.00014962,2]
[344631423,1733645141532,200.0,0.00014956,2]
[344631424,1733645141785,200.0,0.00014962,2]
[344631425,1733645143896,200.0,0.00014994,2]
[344631426,1733645144261,200.0,0.00014994,2]
[344631428,1733645144545,200.0,0.00014985,2]
[344631435,1733645164972,200.0,0.00014984,2]
[344631436,1733645165268,200.0,0.00014979,2]
[344631437,1733645165606,200.0,0.00014994,2]
[344631438,1733645165932,200.0,0.00014977,2]
[344631440,1733645166312,200.0,0.00014975,2]
[344631441,1733645166584,200.0,0.00014966,2]
[344631444,1733645172976,291.90617362,0.00014965,2]
[344631445,1733645173262,291.90617362,0.0001498,2]
[344631446,1733645173563,291.90617362,0.00014968,2]
[344631447,1733645173873,291.90617362,0.00014964,2]
[344631448,1733645174218,291.90617362,0.00014971,2]
[344631450,1733645174535,291.90617362,0.0001499,2]
[344631453,1733645182811,200.0,0.0001498,2]
[344631454,1733645183404,200.0,0.00014984,2]
[344631456,1733645183700,200.0,0.00014993,2]
[344631457,1733645183981,200.0,0.00014988,2]
[344631458,1733645184268,200.0,0.00014969,2]
[344631459,1733645184642,200.0,0.00014964,2]
[344631461,1733645191833,204.43346607,0.0001498,2]
[344631462,1733645192121,204.43346607,0.00014978,2]
[344631463,1733645192427,204.43346607,0.00015,2]
[344631464,1733645192965,204.43346607,0.00014995,2]
[344631465,1733645193047,204.43346607,0.00014991,2]
[344631466,1733645193358,204.43346607,0.0001496,2]
[344631467,1733645204135,200.0,0.00014967,2]
[344631468,1733645204367,200.0,0.00014994,2]
[344631469,1733645204655,200.0,0.00014972,2]
[344631470,1733645204936,200.0,0.00014993,2]
[344631471,1733645205226,200.0,0.00014997,2]
[344631472,1733645205541,200.0,0.00014999,2]
[344631473,1733645224893,200.0,0.0001497,2]
[344631474,1733645225207,200.0,0.00014973,2]
[344631475,1733645225493,200.0,0.00014976,2]
[344631476,1733645225853,200.0,0.00014977,2]
[344631477,1733645226158,200.0,0.00014957,2]
[344631478,1733645226450,200.0,0.00014979,2]
[344631479,1733645232933,218.92963021,0.0001498,2]
[344631480,1733645233234,218.92963021,0.00014962,2]
[344631481,1733645233537,218.92963021,0.00015,2]
[344631482,1733645233930,218.92963021,0.00014969,2]
[344631483,1733645234573,218.92963021,0.00014988,2]
[344631484,1733645234652,218.92963021,0.00014988,2]
[344631485,1733645241879,200.0,0.00014982,2]
[344631486,1733645242153,200.0,0.00014966,2]
[344631487,1733645242478,200.0,0.00014988,2]
[344631488,1733645242764,200.0,0.00014986,2]
[344631489,1733645243075,200.0,0.00014996,2]
[344631490,1733645243355,200.0,0.00014962,2]
[344631492,1733645250156,200.0,0.0001498,2]
[344631493,1733645250436,200.0,0.00014988,2]
[344631494,1733645250726,200.0,0.0001496,2]
[344631495,1733645251008,200.0,0.00014974,2]
[344631496,1733645251351,200.0,0.00014992,2]
[344631497,1733645251626,200.0,0.00014976,2]
[344631498,1733645262238,200.0,0.00014979,2]
[344631499,1733645262524,200.0,0.00014972,2]
[344631500,1733645262796,200.0,0.00014972,2]
[344631501,1733645263086,200.0,0.00014991,2]
[344631502,1733645263459,200.0,0.00014963,2]
[344631503,1733645284883,200.0,0.00014974,2]
[344631504,1733645285201,200.0,0.00014961,2]
[344631505,1733645285601,200.0,0.0001496,2]
[344631506,1733645285922,200.0,0.00014961,2]
[344631507,1733645286573,200.0,0.00014998,2]
[344631508,1733645286693,200.0,0.00014978,2]
[344631509,1733645292976,200.0,0.00014981,2]
[344631510,1733645293268,200.0,0.00014993,2]
[344631511,1733645293561,200.0,0.00014959,2]
[344631512,1733645293928,200.0,0.00014982,2]
[344631513,1733645294220,200.0,0.00014967,2]
[344631514,1733645294559,200.0,0.00014963,2]
[344631515,1733645301664,200.0,0.00014985,2]
[344631516,1733645301951,200.0,0.00014962,2]
[344631517,1733645302266,200.0,0.0001496,2]
[344631518,1733645302580,200.0,0.00014985,2]
[344631519,1733645302886,200.0,0.00014971,2]
[344631520,1733645303188,200.0,0.00014991,2]
[344631521,1733645310073,200.0,0.00014984,2]
[344631522,1733645310373,200.0,0.00014991,2]
[344631523,1733645310723,200.0,0.00014979,2]
[344631524,1733645311032,200.0,0.00014958,2]
[344631525,1733645311340,200.0,0.00014962,2]
[344631526,1733645311621,200.0,0.00014997,2]
[344631527,1733645346352,200.0,0.00014994,2]
[344631528,1733645346660,200.0,0.00014989,2]
[344631529,1733645346953,200.0,0.00014993,2]
[344631530,1733645347276,200.0,0.0001498,2]
[344631531,1733645347552,200.0,0.00014989,2]
[344631532,1733645361887,200.0,0.00014998,2]
[344631533,1733645362182,200.0,0.00014958,2]
[344631534,1733645362480,200.0,0.00014992,2]
[344631535,1733645362780,200.0,0.00014971,2]
[344631536,1733645363064,200.0,0.00014958,2]
[344631537,1733645363358,200.0,0.00014985,2]
[344631538,1733645394897,200.0,0.00014958,2]
[344631539,1733645395298,200.0,0.00014967,2]
[344631540,1733645395811,200.0,0.00014985,2]
[344631541,1733645395888,200.0,0.00014974,2]
[344631542,1733645396192,200.0,0.00014992,2]
[344631543,1733645396503,200.0,0.00014998,2]
[344631544,1733645405202,150.0,0.00014985,2]
[344631545,1733645405427,150.0,0.00014985,2]
[344631546,1733645405618,150.0,0.00014985,2]
[344631547,1733645405813,150.0,0.00014985,2]
[344631548,1733645406017,150.0,0.00014985,2]
[344631549,1733645406210,150.0,0.00014985,2]
[344631550,1733645406300,200.0,0.00015,2]
[344631551,1733645406410,150.0,0.00014985,2]
[344631552,1733645406596,150.0,0.00014985,2]
[344631553,1733645406816,150.0,0.00014985,2]
[344631554,1733645406982,150.0,0.00014985,2]
[344631555,1733645407233,150.0,0.00014985,2]
[344631556,1733645407445,150.0,0.00014985,2]
[344631557,1733645407626,150.0,0.00014985,2]
[344631558,1733645407799,150.0,0.00014985,2]
[344631559,1733645407965,150.0,0.00014985,2]
[344631560,1733645408142,150.0,0.00014985,2]
[344631561,1733645408331,150.0,0.00014985,2]
[344631562,1733645408502,150.0,0.00014985,2]
[344631563,1733645408915,150.0,0.00014985,2]
[344631564,1733645409119,150.0,0.00014985,2]
[344631565,1733645410628,200.0,0.00014966,2]
[344631566,1733645411161,200.0,0.00014962,2]
[344631567,1733645411259,200.0,0.00014989,2]
[344631568,1733645411547,200.0,0.00014965,2]
[344631569,1733645411850,200.0,0.00014987,2]
[344631570,1733645412236,200.0,0.00014982,2]
[344631571,1733645412618,150.0,0.00014985,2]
[344631572,1733645412810,171.84248155,0.00014985,2]
[344631577,1733645432105,-312.31560999,0.00015101,2]
[344631578,1733645432157,-257.98889949,0.00015101,2]
[344631579,1733645432169,-37.57944975,0.0001515,2]
[344631580,1733645432264,-162.42055025,0.0001515,2]
[344631581,1733645432274,-166.66666667,0.00015201,2]
[344631582,1733645432286,-200.0,0.00015301,2]
[344631583,1733645432297,-200.0,0.00015455,2]
[344631584,1733645432307,-200.0,0.00015609,2]
[344631585,1733645432316,-200.5,0.00017063,2]
[344631586,1733645432327,-170.481749,0.00018397,2]
[344631587,1733645432336,-404.82466916,0.00018964,2]
[344631588,1733645432346,-166.66666667,0.00018987,2]
[344631589,1733645432356,-12701.29918609,0.0001901,2]
[344631590,1733645432368,-957.55557787,0.0001901,2]
[344631591,1733645432383,-379.50876004,0.0001901,2]
[344631592,1733645432403,-2144.08760656,0.0001901,2]
[344631593,1733645432412,-1483.39,0.00019064,2]
[344631594,1733645432421,-170.481749,0.00019317,2]
[344631595,1733645432431,-150.0,0.00019852,2]
[344631596,1733645432441,-579.40846316,0.00019999,2]
[344631597,1733645432451,-404.82466914,0.00020632,2]
[344631598,1733645432460,-200.0,0.00020967,2]
[344631599,1733645432470,-345.93,0.00021022,2]
[344631600,1733645432484,-150.0,0.00021054,2]
[344631602,1733645432497,-325.76,0.00021061,2]
[344631603,1733645432507,-500.0,0.00021069,2]
[344631604,1733645432516,-250.0,0.00021071,2]
[344631605,1733645432525,-502.97,0.0002108,2]
[344631606,1733645432535,-250.0,0.00021094,2]
[344631608,1733645432544,-1000.0,0.00021164,2]
[344631610,1733645432553,-250.0,0.00021176,2]
[344631612,1733645432563,-150.0,0.00021199,2]
[344631614,1733645432572,-553.06,0.00021237,2]
[344631616,1733645432581,-420.08751214,0.00021286,2]
[344631619,1733645432599,-69.68248786,0.00021286,2]
[344631620,1733645432609,-162.25,0.00021286,2]
[344631621,1733645432618,-168.88,0.00021288,2]
[344631622,1733645432627,-300.0,0.00021292,2]
[344631623,1733645432636,-688.0,0.000213,2]
[344631624,1733645432645,-171.45,0.000213,2]
[344631625,1733645432654,-1483.39,0.00021328,2]
[344631626,1733645432663,-364.18,0.00021354,2]
[344631627,1733645432672,-1491.77929743,0.00021413,2]
[344631630,1733645437988,-4035.76070257,0.00021413,2]
[344631631,1733645437997,-165.89,0.00021436,2]
[344631632,1733645438007,-500.0,0.00021525,3]
[344631633,1733645438016,-368.93,0.00021772,2]
[344631634,1733645438025,-345.93,0.000218,2]
[344631635,1733645438034,-155.126,0.0002185,2]
[344631636,1733645438044,-2271.66961384,0.00021899,12]
[344631637,1733645438053,-200.0,0.000219,2]
[344631638,1733645438062,-300.0,0.000219,7]
[344631639,1733645438071,-465.25,0.00021973,30]
[344631640,1733645438080,-371.65928568,0.00021988,2]
[344631641,1733645438089,-764.29919844,0.00022,2]
[344631642,1733645438101,-4931.93698966,0.00022,2]
[344631643,1733645438120,-1540.67285632,0.00022,2]
[344631644,1733645438130,-14994.0,0.00022,10]
[344631645,1733645438139,-700.0,0.00022,8]
[344631646,1733645438149,-1720.65,0.00022093,2]
[344631647,1733645438159,-1000.0,0.000221,8]
[344631648,1733645438168,-153.0,0.00022124,2]
[344631649,1733645438177,-153.0,0.00022124,2]
[344631650,1733645438186,-1000.0,0.00022149,2]
[344631651,1733645438195,-154.992,0.000222,2]
[344631652,1733645438204,-5965.0,0.000222,2]
[344631653,1733645438214,-588.433,0.000222,2]
[344631654,1733645438223,-1400.0,0.000222,8]
[344631655,1733645438234,-404.82466914,0.000223,2]
[344631656,1733645438244,-1800.0,0.000223,8]
[344631657,1733645438254,-300.0,0.000224,8]
[344631658,1733645438264,-371.65928568,0.0002242,2]
[344631659,1733645438273,-371.65928569,0.00022487,2]
[344631660,1733645438283,-3000.0,0.000225,2]
[344631661,1733645438296,-300.0,0.000225,8]
[344631662,1733645438306,-345.93,0.00022578,2]
[344631663,1733645438315,-300.0,0.000226,8]
[344631664,1733645438324,-300.0,0.000227,8]
[344631665,1733645438337,-3779.74453912,0.0002279,2]
[344631666,1733645438353,-1220.25546089,0.0002279,2]
[344631667,1733645438362,-800.0,0.000228,8]
[344631668,1733645438373,-1152.897,0.00022833,2]
[344631669,1733645438383,-3000.0,0.0002287,2]
[344631670,1733645438393,-2182.30929011,0.00022871,2]
[344631671,1733645438405,-817.69070989,0.00022871,2]
[344631672,1733645438415,-3000.0,0.00022891,2]
[344631673,1733645438424,-150.0,0.00022898,2]
[344631674,1733645438434,-150.0,0.00022898,2]
[344631675,1733645438443,-150.0,0.00022898,2]
[344631676,1733645438453,-150.0,0.00022898,2]
[344631677,1733645438462,-150.0,0.00022898,3]
[344631678,1733645438472,-150.0,0.00022898,3]
[344631679,1733645438484,-185.01679549,0.00022898,3]
[344631680,1733645438494,-610.1318601,0.00022898,2]
[344631681,1733645438503,-610.13186007,0.00022898,2]
[344631682,1733645438513,-610.13186007,0.00022898,2]
[344631683,1733645438523,-610.13186007,0.00022899,2]
[344631684,1733645438533,-610.13186007,0.00022899,2]
[344631685,1733645438543,-2500.0,0.00022899,2]
[344631686,1733645438552,-167.25061234,0.00022899,2]
[344631687,1733645438562,-610.13186007,0.00022899,2]
[344631688,1733645438572,-167.25061234,0.00022899,2]
[344631689,1733645438581,-610.13186007,0.00022899,2]
[344631690,1733645438591,-167.25061234,0.00022899,2]
[344631691,1733645438601,-610.13186007,0.000229,2]
[344631692,1733645438610,-167.25061234,0.000229,2]
[344631693,1733645438620,-610.13186007,0.000229,2]
[344631694,1733645438630,-167.25061234,0.000229,2]
[344631695,1733645438640,-4556.8642812,0.000229,2]
[344631696,1733645438650,-8346.8589794,0.000229,2]
[344631697,1733645438660,-1424.80711981,0.000229,2]
[344631698,1733645438670,-1931.45255308,0.000229,2]
[344631699,1733645438680,-167.25061234,0.000229,2]
[344631700,1733645438690,-519.59939716,0.000229,2]
[344631701,1733645438700,-610.13186007,0.000229,2]
[344631702,1733645438709,-577.49018671,0.000229,2]
[344631703,1733645438719,-3000.0,0.00022903,2]
[344631704,1733645438730,-162.68906086,0.00022928,10]
[344631705,1733645438741,-981.29946563,0.00022929,2]
[344631706,1733645438765,-302.27053437,0.00022929,2]
[344631707,1733645438775,-3000.0,0.00022932,2]
[344631708,1733645438784,-165.89,0.00022967,2]
[344631709,1733645438794,-151.4354817,0.00022973,2]
[344631710,1733645438803,-333.56746404,0.00022973,2]
[344631711,1733645438813,-500.15893208,0.00022973,2]
[344631712,1733645438823,-417.49981898,0.00022973,2]
[344631713,1733645438833,-500.0,0.00022973,2]
[344631714,1733645438843,-2273.0,0.00022978,14]
[344631715,1733645438852,-1000.0,0.00022982,2]
[344631716,1733645438861,-2301.0,0.0002299,15]
[344631717,1733645438871,-3357.9027314,0.00022993,2]
[344631718,1733645438880,-1219.7196181,0.00022993,2]
[344631719,1733645438890,-579.41820092,0.00022993,2]
[344631720,1733645438899,-346.99927419,0.00022993,2]
[344631721,1733645438910,-317.85272312,0.00022998,3]
[344631723,1733645439920,-999.19916,0.00022998,3]
[344631724,1733645440274,-783.988005,0.00022998,3]
[344631725,1733645440286,-515.96,0.00022998,3]
[344631726,1733645440304,-258.87594192,0.00022998,3]
[344631732,1733645443164,-5129.7814855,0.00022993,2]
[344631733,1733645443174,-1864.52721941,0.00022998,3]
[344631734,1733645443323,-3249.53439277,0.00022998,3]
[344631747,1733645445934,-160.91,0.00022283,2]
[344631748,1733645445944,-10948.8995325,0.00022998,3]
[344631749,1733645446038,-299.406618,0.00022998,3]
[344631750,1733645446198,-514.09323,0.00022998,3]
[344631751,1733645446252,-4619.00620459,0.00022998,3]
[344631755,1733645823611,230.83266448,0.00014975,2]
[344631756,1733645823892,230.83266448,0.0001499,2]
[344631757,1733645824227,230.83266448,0.00014975,2]
[344631758,1733645824525,230.83266448,0.00014972,2]
[344631759,1733645825015,230.83266448,0.00014975,2]
[344631760,1733645825099,230.83266448,0.00014999,2]
[344631761,1733645887629,200.0,0.00014973,2]
[344631762,1733645888108,200.0,0.00014974,2]
[344631763,1733645888242,200.0,0.0001499,2]
[344631764,1733645888528,200.0,0.00014987,2]
[344631765,1733645888809,200.0,0.00014977,2]
[344631766,1733645889132,200.0,0.00014996,2]
[344631767,1733645918045,450.0,0.00013,2]
[344631768,1733645920026,500.0,0.00015,2]
[344631769,1733645944998,200.0,0.00014979,2]
[344631770,1733645945353,200.0,0.00014962,2]
[344631771,1733645945722,200.0,0.00014962,2]
[344631772,1733645946021,200.0,0.0001497,2]
[344631773,1733645946334,200.0,0.00014981,2]
[344631774,1733645946651,200.0,0.00014972,2]
[344631776,1733646004617,200.0,0.00014963,2]
[344631777,1733646004921,200.0,0.00014984,2]
[344631778,1733646005219,200.0,0.00014969,2]
[344631779,1733646005514,200.0,0.00014961,2]
[344631780,1733646005879,200.0,0.00014966,2]
[344631781,1733646006279,200.0,0.00014994,2]
[344631790,1733646326866,4168.86256614,0.000199,120]
[344631794,1733646335260,150.79371295,0.0001,2]
[344631813,1733646513259,213.40715546,0.0001,2]
[344631820,1733646522245,300.0,0.0001,2]
[344631825,1733646632299,-198.24,0.0001656,2]
[344631826,1733646632308,-77.14010487,0.00016707,2]
[344631827,1733646632356,-99.23989513,0.00016707,2]
[344631828,1733646632365,-550.0,0.00017,2]
[344631829,1733646632375,-1335.05,0.00018529,2]
[344631830,1733646632385,-150.0,0.00019178,2]
[344631831,1733646632394,-269.88311278,0.00019509,2]
[344631832,1733646632403,-300.0,0.00019609,2]
[344631833,1733646632412,-3606.97744731,0.0001961,2]
[344631834,1733646632424,-272.79418167,0.0001961,2]
[344631835,1733646632435,-4280.23026881,0.0001961,2]
[344631836,1733646632474,-20245.48794334,0.0001961,2]
[344631837,1733646632483,-269.88311276,0.00019705,2]
[344631838,1733646632493,-207.56,0.00019881,2]
[344631839,1733646632504,-269.88311276,0.000199,2]
[344631840,1733646632513,-219.48,0.00019939,2]
[344631841,1733646632523,-450.0,0.00019999,2]
[344631842,1733646632532,-31042.5546261,0.0002,10]
[344631844,1733646632543,-257.55325971,0.0002,7]
[344631846,1733646632553,-162.25,0.00020225,2]
[344631848,1733646632562,-500.0,0.00020333,2]
[344631850,1733646632571,-159.28098753,0.00020376,2]
[344631852,1733646632581,-500.0,0.00020384,2]
[344631854,1733646632590,-165.89,0.00020436,2]
[344631856,1733646632600,-61908.70992059,0.00020436,2]
[344632021,1733646638144,-33146.67007941,0.00020436,2]
[344632022,1733646638153,-250.0,0.00020476,2]
[344632023,1733646638162,-166.47,0.00020477,2]
[344632024,1733646638171,-761.35,0.0002056,2]
[344632025,1733646638181,-207.56,0.00020616,2]
[344632026,1733646638190,-20589.94992089,0.00020663,2]
[344632027,1733646638205,-3310.05007911,0.00020663,2]
[344632028,1733646638215,-300.0,0.00020703,2]
[344632029,1733646638224,-250.0,0.0002074,2]
[344632030,1733646638233,-753.3,0.0002074,2]
[344632031,1733646638242,-330.7,0.00020764,2]
[344632032,1733646638253,-250.0,0.00020785,2]
[344632033,1733646638262,-1221.44526385,0.00020793,2]
[344632062,1733646638714,-113.60473615,0.00020793,2]
[344632065,1733646638724,-151.0,0.00020798,2]
[344632067,1733646638734,-151.0,0.00020798,2]
[344632069,1733646638744,-151.0,0.00020798,2]
[344632071,1733646638754,-450.62,0.00020798,30]
[344632073,1733646638763,-150.0,0.0002081,2]
[344632075,1733646638776,-160.91,0.00020832,2]
[344632076,1733646638786,-32716.23404451,0.00020871,3]
[344632079,1733646638799,-8355.461751,0.00020871,3]
[344632081,1733646638813,-28376.75751412,0.00020871,3]
[344632083,1733646638823,-2759.21945121,0.00020871,3]
[344632085,1733646638832,-1000.0,0.00020871,2]
[344632087,1733646638841,-151.0,0.00020871,2]
[344632089,1733646638851,-3332.282362,0.00020871,2]
[344632090,1733646638860,-389.33149667,0.00020871,2]
[344632091,1733646638871,-1980.0,0.00020871,2]
[344632092,1733646638882,-393.69097478,0.00020871,2]
[344632093,1733646638893,-569.25989055,0.00020871,2]
[344632095,1733646638903,-167.018135,0.00020871,2]
[344632097,1733646638912,-167.018135,0.00020871,2]
[344632099,1733646638922,-151.0,0.00020871,2]
[344632100,1733646638931,-502.661123,0.00020871,2]
[344632101,1733646638940,-240.291275,0.00020871,2]
[344632102,1733646638949,-502.661123,0.00020871,2]
[344632103,1733646638959,-240.291275,0.00020871,2]
[344632104,1733646638968,-161.988454,0.00020871,2]
[344632105,1733646638977,-167.464821,0.00020871,2]
[344632106,1733646638987,-167.464821,0.00020871,2]
[344632107,1733646638996,-151.0,0.00020871,2]
[344632108,1733646639006,-151.0,0.00020871,2]
[344632109,1733646639015,-250.805136,0.00020871,2]
[344632110,1733646639024,-2307.565499,0.00020871,2]
[344632111,1733646639033,-250.805136,0.00020871,2]
[344632112,1733646639043,-2080.54428501,0.00020871,2]
[344632115,1733646640176,-227.02121399,0.00020871,2]